[Event "SixDays Budapest GM-A 09-2024"]
[Site "Budapest"]
[Date "2024.09.24"]
[Round "1.4"]
[White "Chen, Yining"]
[Black "Lee, Junhyeok"]
[Result "0-1"]
[ECO "A53"]
[WhiteElo "2252"]
[BlackElo "2364"]
[Annotator "TA"]
[PlyCount "58"]
[EventDate "2024.09.24"]
[EventType "tourn"]
[EventCountry "HUN"]
[SourceTitle "playchess.com"]
[Source "ChessBase"]
[SourceQuality "1"]
[TimeControl "5400+30"]

{[%evp 11,58,0,0,0,1,0,0,0,0,0,4,-4,0,0,12,-8,-6,-10,0,-11,-14,-7,0,-12,-15,-99,-143,-126,-125,-145,-118,-210,-192,-310,-343,-392,-395,-354,-341,-531,-407,-550,-554,-563,-563,-551,-557,-649,-655]} 1. d4 {[%emt 0:00:04]} Nf6 {[%emt 0:00:05]} 2. c4 {[%emt 0:00:05]} d6 {[%emt 0:00:05]} 3. Nf3 {[%emt 0:00:29]} Nc6 {[%emt 0:01:27]} 4. Nc3 {[%emt 0:03:10]} e5 {[%emt 0:00:08]} 5. dxe5 {[%emt 0:08:44]} dxe5 {[%emt 0:01:00]} 6. Qxd8+ {[%emt 0:00:11]} Kxd8 {[%emt 0:00:03]} 7. Bg5 {[%emt 0:00:18]} Be6 {[%emt 0:00:16]} 8. e3 {[%emt 0:01:09]} Kc8 {[%emt 0:01:48]} 9. Bxf6 {[%emt 0:04:04] The position is equal.} gxf6 {[%emt 0:00:08]} 10. O-O-O {[%emt 0:00:15]} a5 {[%emt 0:11:12][%cal Ba7a5,Ba5a4,Ba4a3][%mdl 32]} 11. Nd5 {[%emt 0:04:37]} f5 {[%emt 0:02:41]} 12. Ng5 {[%emt 0:04:17]} a4 {[%emt 0:06:15]} 13. Nxe6 {[%emt 0:07:13]} fxe6 {[%emt 0:00:06]} 14. Nc3 {[%emt 0:00:20][%cal Og2g4]} Rg8 {[%emt 0:17:27]} 15. Rg1 {[%emt 0:06:18][%cal Og2g4]} a3 {[%emt 0:07:08]} 16. b3 {[%emt 0:03:07][%cal Og2g4]} e4 {[%emt 0:01:36]} 17. Be2 {[%emt 0:10:56]} Bg7 {[%emt 0:01:57]} 18. Nb5 {[%emt 0:00:32] [#]} (18. Na4 $1 $11) 18... Nb4 $1 $36 {[%emt 0:02:04][%mdl 2048] White is under strong pressure.} 19. Kb1 {[%emt 0:00:30]} c6 {[%emt 0:00:27]} 20. Nd4 {[%emt 0:09:14]} Bxd4 {[%emt 0:01:20]} 21. exd4 {[%emt 0:00:06] [#]} (21. Rxd4 $17 e5 22. Rd2) 21... Kc7 $1 $19 {[%emt 0:00:59]} 22. f3 {[%emt 0:02:12]} (22. g4 $142) 22... Rad8 {[%emt 0:03:44]} ({Worse is} 22... e3 23. f4 $11) 23. g4 {[%emt 0:19:41]} exf3 {[%emt 0:03:30]} ({Weaker is} 23... e3 24. f4 $17) 24. Bxf3 {[%emt 0:00:02]} fxg4 {[%emt 0:00:10]} 25. Be4 {[%emt 0:06:59]} (25. Rxg4 $142 Rxg4 26. Bxg4) 25... h5 {[%emt 0:03:55] Hoping for ...Rgf8.} 26. Rd2 {[%emt 0:00:30]} Rgf8 {[%emt 0:00:41] Black is clearly winning.} 27. Re1 {[%emt 0:02:16]} Rf4 {[%emt 0:00:57] White must now prevent ...Rdf8.} 28. Kc1 {[%emt 0:00:55]} h4 {[%emt 0:03:21]} 29. Bb1 {[%emt 0:02:06]} Rdxd4 {[%emt 0:01:25] Weighted Error Value: White=0.43/Black=0.07 (flawless) .  Mistake:       	White=4     	---        Inaccurate:     	White=1     	---        OK:         	White=7     	Black=14     Best:        	---       	Black=1      Strong:       	---       	Black=2} 0-1

[Event "SixDays Budapest GM-A 09-2024"]
[Site "Budapest"]
[Date "2024.09.24"]
[Round "1.5"]
[White "Panda Sambit"]
[Black "Defromont, Benjamin"]
[Result "0-1"]
[ECO "B01"]
[WhiteElo "2367"]
[BlackElo "2383"]
[Annotator "TA"]
[PlyCount "86"]
[EventDate "2024.09.24"]
[EventType "tourn"]
[EventCountry "HUN"]
[SourceTitle "playchess.com"]
[Source "ChessBase"]
[SourceQuality "1"]
[TimeControl "5400+30"]

{[%evp 9,85,45,52,37,46,44,46,50,65,40,41,37,44,40,36,34,34,22,65,57,52,19,21,27,27,20,56,50,56,-138,-135,-347,-353,-329,-351,-349,-350,-352,-338,-346,-339,-354,-356,-350,-335,-348,-351,-414,-368,-416,-416,-410,-430,-460,-447,-447,-445,-728,-719,-677,-711,-716,-709,-719,-706,-949,-960,-922,-749,-831,-855,-1000,-972,-1022,-920,-974,-929,-929]} 1. e4 {[%emt 0:04:52]} d5 {[%emt 0:00:46]} 2. exd5 {[%emt 0:00:09]} Qxd5 {[%emt 0:00:06]} 3. h3 {[%emt 0:05:46]} Nf6 {[%emt 0:00:35]} 4. Nf3 {[%emt 0:00:10]} Nc6 {[%emt 0:14:14]} 5. Nc3 {[%emt 0:15:47]} Qd8 {[%emt 0:06:16]} 6. d4 {[%emt 0:03:04]} a6 {[%emt 0:00:07]} 7. a3 {[%emt 0:05:47]} e6 {[%emt 0:02:41]} 8. Bd3 {[%emt 0:00:44] White is slightly better.} g6 {[%emt 0:01:43][%cal Of8g7]} 9. Bg5 {[%emt 0:13:05][%cal Od4d5]} h6 {[%emt 0:03:18]} 10. Be3 {[%emt 0:00:50]} Bg7 {[%emt 0:00:09]} 11. Qd2 {[%emt 0:03:13]} b6 {[%emt 0:04:37]} 12. O-O-O {[%emt 0:12:17]} Bb7 {[%emt 0:01:27]} 13. Rhg1 {[%emt 0:04:25]} Ne7 {[%emt 0:05:05]} 14. Ne5 {[%emt 0:01:05]} Ned5 {[%emt 0:03:18]} 15. Nxd5 {[%emt 0:04:09]} Nxd5 {[%emt 0:08:18]} 16. Be4 {[%emt 0:03:04]} c5 {[%emt 0:09:03]} 17. c4 {[%emt 0:10:15]} cxd4 {[%emt 0:02:19]} 18. Bxd4 Qc7 {[%emt 0:02:48] [#] Against Nc6} 19. Nc6 $2 {[%emt 0:04:55]} Nf6 $17 {[%emt 0:03:58]} 20. Bxf6 {[%emt 0:06:05] Loses the game.} (20. Qe3 $17 Bxc6 21. Be5) 20... Bxf6 $19 {[%emt 0:00:20]} 21. Qd6 {[%emt 0:00:31]} Rc8 {[%emt 0:01:29][%cal Rb7c6]} 22. Qxc7 {[%emt 0:00:45]} Rxc7 {[%emt 0:00:04]} 23. Rd6 {[%emt 0:00:25]} Be7 {[%emt 0:02:15] A strong pair of Bishops.} 24. Rgd1 {[%emt 0:00:33]} ({Of course not} 24. Nxe7 Bxe4 (24... Kxe7 25. Rd4 $17) 25. Rd4 Bb7 26. Nxg6 fxg6) 24... Bxd6 {[%emt 0:00:22]} 25. Rxd6 {[%emt 0:00:06][%csl Gc6][%cal Rd6d8]} Bxc6 {[%emt 0:00:19]} 26. Rxc6 {[%emt 0:00:06]} Rxc6 {[%emt 0:00:08]} 27. Bxc6+ {[%emt 0:00:04][%mdl 4096] Endgame. KR-KB} Ke7 {[%emt 0:00:03]} 28. Bb7 {[%emt 0:00:24]} a5 {[%emt 0:00:18]} 29. Kc2 {[%emt 0:00:06]} Rd8 {[%emt 0:01:07]} 30. Bf3 {[%emt 0:00:25]} f5 {[%emt 0:00:16]} 31. Kc3 {[%emt 0:00:08] Black is clearly winning.} e5 {[%emt 0:00:08]} 32. Bd5 {[%emt 0:00:04]} g5 {[%emt 0:01:16]} 33. g4 {[%emt 0:00:30]} (33. b4 $142) 33... Rf8 {[%emt 0:02:55]} 34. f3 {[%emt 0:00:40] [#]} h5 $1 {[%emt 0:00:27]} 35. gxf5 {[%emt 0:02:35]} Rxf5 {[%emt 0:00:04]} 36. Kd3 {[%emt 0:00:52]} Rf4 {[%emt 0:00:08]} 37. Be4 {[%emt 0:00:11]} Rh4 {[%emt 0:01:21]} 38. Bf5 {[%emt 0:00:11]} Rd4+ {[%emt 0:00:02]} 39. Ke3 {[%emt 0:01:04]} Rxc4 {[%emt 0:00:12]} 40. Bg6 {[%emt 0:00:05]} Rh4 {[%emt 0:00:17]} 41. Bf5 {[%emt 0:00:04]} Kd6 {[%emt 0:00:16] Threatens to win with ...b5.} 42. b3 {[%emt 0:00:14]} Kc5 {[%emt 0:00:13] And now ...a4 would win.} 43. Be6 {[%emt 0:00:40]} b5 {[%emt 0:02:09] Weighted Error Value: White=0.45/Black=0.10 (very precise) .  Loses game:     	White=1     	---        Mistake:       	White=2     	---        Inaccurate:     	White=1     	Black=2      OK:         	White=10    	Black=15     Best:        	White=1     	Black=1} 0-1